[Event "14th BPB Limburg Open 2022"]
[Site "Maastricht"]
[Date "2022.06.04"]
[Round "2.3"]
[White "Strating, Sybolt"]
[Black "Gurevich, Mikhail"]
[Result "0-1"]
[ECO "A88"]
[WhiteElo "2295"]
[BlackElo "2573"]
[Annotator "TA"]
[PlyCount "72"]
[EventDate "2022.06.03"]
[EventType "swiss"]
[EventCountry "NED"]
[SourceTitle "playchess.com"]
[Source "ChessBase"]
[SourceQuality "1"]
[TimeControl "7200+15"]

{[%evp 18,72,19,14,50,55,50,4,27,26,19,27,33,30,33,6,12,-14,0,-19,-17,-69,-55,-67,-60,-99,7,5,10,-324,-308,-330,-325,-487,-509,-477,-344,-333,-296,-532,-514,-506,-501,-436,-323,-547,-526,-927,-943,-1036,-987,-1660,-1650,-1589,-1494,-1405,-556]} 1. d4 {[%emt 0:00:07]} d6 {[%emt 0:00:24]} 2. c4 {[%emt 0:00:09]} f5 {[%emt 0:00:06]} 3. Nf3 {[%emt 0:00:09]} Nf6 {[%emt 0:00:06]} 4. g3 {[%emt 0:00:07]} g6 {[%emt 0:00:04]} 5. Bg2 {[%emt 0:00:06]} Bg7 {[%emt 0:00:03]} 6. O-O {[%emt 0:00:13]} O-O {[%emt 0:00:06]} 7. Nc3 {[%emt 0:00:04]} c6 {[%emt 0:00:38]} 8. d5 {[%emt 0:02:18]} e5 {[%emt 0:00:27]} 9. dxe6 {[%emt 0:02:55]} Bxe6 {[%emt 0:00:09]} 10. b3 {[%emt 0:02:47]} Qe7 {[%emt 0:01:22] A88: Dutch Defence: Leningrad System: 5 Nf3 0-0 6 0-0 d6 7 Nc3 c6.} 11. Ba3 {[%emt 0:05:39]} Rd8 {[%emt 0:00:46]} 12. Nd4 {[%emt 0:05:23] [#]} (12. Qd2 $14) 12... Na6 $146 {[%emt 0:19:29][%cal Bb8a6,Ba6c5,Bc5e6][%mdl 32] The position is equal.} ({Predecessor:} 12... Bf7 13. Re1 Na6 14. e4 fxe4 15. Nxe4 Nxe4 16. Bxe4 Qf6 17. Nc2 Nc5 18. Bg2 Re8 {½-½ (69) Muha,S (2222)-Brilej,J (2228) Chess.com INT 2020}) 13. Qc2 {[%emt 0:10:59]} Bd7 {[%emt 0:04:02]} 14. Rad1 {[%emt 0:03:43][%cal Od4b5]} Nc5 {[%emt 0:00:18]} 15. Rfe1 {[%emt 0:11:59]} Re8 {[%emt 0:00:51]} 16. Bc1 {[%emt 0:17:16]} Rad8 {[%emt 0:14:17]} 17. f3 {[%emt 0:05:09]} Bc8 {[%emt 0:04:58]} 18. b4 {[%emt 0:10:28]} Ne6 {[%emt 0:11:34]} 19. Nb3 {[%emt 0:01:06]} ({White should play} 19. e3 $1 $11) 19... d5 $15 {[%emt 0:01:39]} 20. cxd5 {[%emt 0:05:20]} cxd5 {[%emt 0:02:54] ...d4 is the strong threat.} 21. a3 {[%emt 0:13:27]} d4 {[%emt 0:08:48]} (21... f4 $17 22. gxf4 Qc7) 22. Nb5 $11 {[%emt 0:01:13][%csl LRa7,LRd4][%cal Rb5d4]} Nd5 {[%emt 0:00:08]} 23. Nxa7 $2 {[%emt 0:13:13][%mdl 8192] White does not recover from this.} ({Don't play} 23. N3xd4 a6 24. e4 fxe4 25. Nxe6 (25. fxe4 axb5 26. Nf5 Qc7 $17) 25... Bxe6 26. fxe4 Nxb4 27. axb4 axb5 $17) (23. e4 $11 Nc3 24. Nxc3 (24. exf5 Nxd1 25. Qxd1 gxf5 $17) 24... dxc3 25. exf5 gxf5 26. Bf1 (26. Qxf5 $2 Rxd1 27. Rxd1 Nd4 $19)) 23... Bd7 $19 {[%emt 0:07:21]} 24. Qc4 {[%emt 0:01:49]} Ba4 {[%emt 0:05:14] Threatens to win with ...Nc3.} 25. f4 {[%emt 0:06:55]} (25. e4 $142 Nc3 26. exf5 gxf5 27. Nc5 Bxd1 28. Rxe6) 25... Nc3 {[%emt 0:03:56] [#] And now ...b5 would win.} 26. b5 {[%emt 0:02:53]} Bxb3 {[%emt 0:07:53]} 27. Qxb3 {[%emt 0:00:02]} Qc5 {[%emt 0:00:13]} 28. b6 $2 {[%emt 0:00:21]} (28. Bxb7 {only move.} d3+ 29. e3 Qxa7 30. Bc6 Ne2+ 31. Rxe2 dxe2 32. Re1) 28... Nxd1 {[%emt 0:00:28][%mdl 64] [#] Discovered Attack} 29. Rxd1 {[%emt 0:00:08]} d3+ {[%emt 0:00:20][%cal Bd4d3,Bd3c2][%mdl 32]} 30. e3 {[%emt 0:00:31]} Qc2 {[%emt 0:00:20]} 31. Qxc2 {[%emt 0:00:44]} (31. Bd5 Rxd5 32. Qxc2 dxc2 33. Rxd5) 31... dxc2 {[%emt 0:00:09] Black is clearly winning.} 32. Rf1 {[%emt 0:00:41]} Nc5 {[%emt 0:01:15] aiming for ...Nb3.} 33. Bf3 {[%emt 0:00:16]} Nb3 {[%emt 0:02:47]} 34. Nb5 {[%emt 0:00:05]} Nxc1 {[%emt 0:00:20]} 35. Rxc1 {[%emt 0:00:01]} Rd2 {[%emt 0:00:08]} 36. Nd4 {[%emt 0:00:35]} Rxe3 {[%emt 0:00:21] Weighted Error Value: White=1.01/Black=0.20 (precise)} (36... Bxd4 $142 37. exd4 Re3 38. Bd5+ Kf8) 0-1

[Event "14th BPB Limburg Open 2022"]
[Site "Maastricht"]
[Date "2022.06.04"]
[Round "2.4"]
[White "Dardha, Daniel"]
[Black "Van Roon, Sjoerd"]
[Result "1/2-1/2"]
[ECO "E73"]
[WhiteElo "2561"]
[BlackElo "2264"]
[Annotator "TA"]
[PlyCount "122"]
[EventDate "2022.06.03"]
[EventType "swiss"]
[EventCountry "NED"]
[SourceTitle "playchess.com"]
[Source "ChessBase"]
[SourceQuality "1"]
[TimeControl "7200+15"]

{[%evp 14,122,15,15,33,8,9,4,14,0,0,0,25,0,0,0,0,0,22,-15,24,-43,-25,-21,-38,-27,17,17,3,0,12,0,0,18,12,12,17,1,93,91,177,172,216,17,16,0,0,0,0,-11,-16,-11,-18,-13,-22,-161,-189,-223,-25,-25,-51,-88,0,-82,-88,-82,-89,-87,-58,-160,-130,-115,-70,-70,-70,-70,-115,-70,-70,-70,-70,-70,-70,-67,-56,-118,0,0,0,0,0,0,0,0,0,0,0,0,0,0,0,0,0,0,0,0,0,0,0,0,0]} 1. d4 {[%emt 0:00:23]} Nf6 {[%emt 0:00:12]} 2. c4 {[%emt 0:00:07]} g6 {[%emt 0:00:08]} 3. h4 {[%emt 0:00:06][%cal Bh2h4,Bh4h5,Bh5h6][%mdl 32]} d6 {[%emt 0:00:38]} 4. Nc3 {[%emt 0:00:09]} Bg7 {[%emt 0:00:25]} 5. e4 {[%emt 0:00:09]} c5 {[%emt 0:00:59]} 6. d5 {[%emt 0:00:08]} O-O {[%emt 0:02:18]} 7. Be2 {[%emt 0:00:38]} e6 {[%emt 0:00:17]} 8. h5 {[%emt 0:00:07]} exd5 {[%emt 0:01:32] E73: King's Indian: Averbakh Variation without 6...c5.} 9. exd5 {[%emt 0:00:06]} Re8 {[%emt 0:03:08]} 10. Kf1 {[%emt 0:01:36]} Nbd7 {[%emt 0:01:31]} 11. h6 {[%emt 0:00:13]} Bh8 {[%emt 0:00:26]} 12. Bg5 {[%emt 0:00:08]} Qb6 {[%emt 0:06:19]} 13. b3 {[%emt 0:00:16]} Ne4 {[%emt 0:05:05]} 14. Nxe4 {[%emt 0:00:13]} Rxe4 {[%emt 0:00:04]} 15. Nf3 {[%emt 0:00:26] [#]} Ne5 $146 {[%emt 0:13:00]} ({Predecessor:} 15... Re8 16. Rc1 Nf6 17. Bd3 Ne4 18. Bxe4 Rxe4 19. Nd2 Re8 20. Qf3 f5 21. Qg3 Bd7 {1-0 (87) Prraneeth,V (2409)-Vantika,A (2381) Budapest 2022}) 16. Rc1 {[%emt 0:05:47]} (16. Nd2 $5 {[%cal Rd2e4]} Rd4 17. Be3 $16) 16... Bf5 {[%emt 0:13:18]} 17. Kg1 {[%emt 0:16:20]} (17. Nh4 $11) 17... Bg4 {[%emt 0:18:48]} (17... Re8 $5 {[%cal Rb6a5]} 18. Nxe5 R8xe5 $15) 18. Qc2 {[%emt 0:04:28]} f5 {[%emt 0:03:20]} 19. Be3 {[%emt 0:07:24] aiming for Ng5.} Re8 {[%emt 0:14:38]} 20. Ng5 {[%emt 0:13:50]} Bxe2 {[%emt 0:00:11]} 21. Qxe2 {[%emt 0:00:13]} (21. Nxe4 $2 Bd3 22. Nf6+ Bxf6 $19) 21... Rg4 {[%emt 0:00:26]} 22. Qd2 {[%emt 0:13:12]} Bf6 {[%emt 0:07:55]} 23. Rh3 {[%emt 0:03:01]} Bxg5 {[%emt 0:13:52]} 24. Bxg5 {[%emt 0:03:15] With the idea f4.} Rd4 {[%emt 0:00:23]} 25. Qe2 {[%emt 0:02:58]} f4 {[%emt 0:02:24]} (25... Qc7 $1 $11) 26. Rd1 $1 $16 {[%emt 0:13:28]} Rxd1+ {[%emt 0:03:53]} (26... Rf8 $16) 27. Qxd1 $18 {[%emt 0:00:03]} Qa5 {[%emt 0:00:17][%cal Oe5c4]} 28. Bxf4 $2 {[%emt 0:04:40]} ({White must play} 28. Qe2 $18) 28... Nxc4 $1 $11 {[%emt 0:00:44]} 29. Kf1 {[%emt 0:08:21] Inhibits Re1+.} Qxa2 {[%emt 0:00:57] And now ...Re4 would win.} 30. Kg1 {[%emt 0:08:12]} Qa5 {[%emt 0:00:58]} 31. Kh2 $1 {[%emt 0:00:41]} Ne5 {[%emt 0:00:19]} 32. Bd2 {[%emt 0:03:34] Inhibits Qb4.} Qd8 {[%emt 0:01:53]} 33. f4 {[%emt 0:00:32]} Nd7 {[%emt 0:00:41] Hoping for ...Qf6.} 34. Qa1 {[%emt 0:02:33] [#]} (34. f5 $1 $11) 34... Qf6 $1 $36 {[%emt 0:00:09][%mdl 2048] Black is really pushing.} 35. Qxa7 {[%emt 0:00:37]} Re2 $2 {[%emt 0:00:33]} ({Better is} 35... Qd4 $19 36. Qa5 (36. Qxb7 $2 Qxd2 37. Qxd7 Qxf4+ 38. Rg3 Qxh6+ 39. Qh3 Qf4 $19) 36... Nf6) 36. Bc1 $11 {[%emt 0:03:49]} Re1 {[%emt 0:00:51]} 37. Bd2 {[%emt 0:01:57] [#]} Re2 {[%emt 0:00:05]} (37... Rd1 $1 $17 {[%cal Rd1d2]} 38. Be3 Qf8 39. Qxb7 Nf6) 38. Qa8+ {[%emt 0:00:28]} (38. Bc1 $11 {keeps the balance.}) 38... Qf8 $17 {[%emt 0:01:48]} 39. Qxf8+ {[%emt 0:01:05]} Kxf8 {[%emt 0:00:09][%cal Bg8f8,Bf8f7,Bf7e8][%mdl 4128] Endgame KRB-KRN} 40. Bc3 {[%emt 0:00:04][%cal Of4f5]} Kf7 {[%emt 0:01:04]} 41. Rg3 {[%emt 0:02:44]} ({White should try} 41. f5 $1 $15) 41... Rf2 {[%emt 0:01:17]} 42. Re3 {[%emt 0:00:05]} Rxf4 {[%emt 0:00:22]} 43. Re6 {[%emt 0:00:36]} Nf6 {[%emt 0:00:12]} 44. Rxd6 {[%emt 0:00:38]} Ne4 {[%emt 0:00:09][%csl LRc3,LRd6]} 45. Rd7+ {[%emt 0:00:28]} Ke8 {[%emt 0:00:01]} 46. Rxh7 {[%emt 0:00:19]} Rh4+ {[%emt 0:00:12]} ({Don't do} 46... Nxc3 47. Rh8+ Kf7 48. d6 $16) 47. Kg1 {[%emt 0:00:01]} Nxc3 $15 {[%emt 0:00:01] KRN-KR} 48. g3 {[%emt 0:00:57]} Rh5 {[%emt 0:00:17]} 49. d6 {[%emt 0:00:10]} (49. g4 $15 Rh4 50. d6) 49... Ne4 {[%emt 0:00:27]} (49... Nd5 $17 {Threatens to win with ...b5.} 50. g4 Rh3) 50. Re7+ {[%emt 0:00:57] The position is equal.} Kd8 {[%emt 0:00:07]} 51. Rxe4 {[%emt 0:00:14] Black must now prevent Rh4.} Rxh6 $11 {[%emt 0:00:03] KR-KR} 52. Re6 {[%emt 0:00:19]} Kd7 {[%emt 0:00:30]} 53. Re7+ {[%emt 0:00:16]} Kxd6 {[%emt 0:00:30]} 54. Rxb7 {[%emt 0:00:01]} Rh8 {[%emt 0:00:22]} 55. Kg2 {[%emt 0:00:29]} Kc6 {[%emt 0:00:23]} 56. Rf7 {[%emt 0:00:02]} Rb8 {[%emt 0:00:08]} 57. Rf3 {[%emt 0:00:02]} Kd5 {[%emt 0:00:02]} 58. Kh3 {[%emt 0:00:25]} Rb4 {[%emt 0:00:18]} 59. g4 {[%emt 0:00:08]} g5 {[%emt 0:00:53]} 60. Kg3 {[%emt 0:00:25]} Kd4 {[%emt 0:00:16]} 61. Kf2 {[%emt 0:00:03]} Ke5 {[%emt 0:03:22] What a bad dream for Black.  Weighted Error Value: White=0.21 (precise) /Black=0.23 (precise)} 1/2-1/2

[Event "14th BPB Limburg Open 2022"]
[Site "Maastricht"]
[Date "2022.06.04"]
[Round "2.5"]
[White "Grutter, Tim"]
[Black "Van Foreest, Lucas"]
[Result "0-1"]
[ECO "B01"]
[WhiteElo "2241"]
[BlackElo "2572"]
[Annotator "TA"]
[PlyCount "122"]
[EventDate "2022.06.03"]
[EventType "swiss"]
[EventCountry "NED"]
[SourceTitle "playchess.com"]
[Source "ChessBase"]
[SourceQuality "1"]
[TimeControl "7200+15"]

{[%evp 9,122,12,40,5,59,24,19,19,14,19,29,23,25,16,25,-30,-25,-21,-6,-21,-14,-18,0,0,0,0,0,0,0,0,0,0,0,-23,0,0,0,0,24,0,0,0,0,-18,-16,-19,-7,-15,-9,-14,-16,-18,0,0,0,-102,-113,-112,-71,-81,-60,-102,-51,-108,-85,-74,-83,-80,-100,-103,-85,-111,-113,-110,-108,-106,0,0,0,0,0,0,0,0,0,0,0,0,0,0,0,-8,0,0,0,0,0,-8,-8,-8,-8,0,0,-29977,-29978,-29978,-29979,-29979,-29980,-29980,-29981,-29981,-29982,-29982,-29983]} 1. e4 {[%emt 0:00:03]} d5 {[%emt 0:02:10]} 2. exd5 {[%emt 0:00:05]} Qxd5 {[%emt 0:00:20]} 3. Nc3 {[%emt 0:00:20]} Qd6 {[%emt 0:00:25]} 4. d4 {[%emt 0:03:02]} Nf6 {[%emt 0:00:07]} 5. Nb5 {[%emt 0:03:25]} Qd8 {[%emt 0:03:00]} 6. c4 {[%emt 0:00:19] B01: Scandinavian Defence.} Bg4 $5 {[%emt 0:06:36][%mdl 4] A promising side line.} (6... a6 $11 7. Nc3 e5) 7. Be2 {[%emt 0:06:14]} (7. Ne2 $5 {[%cal Rc1f4]}) 7... Bxe2 {[%emt 0:00:07]} 8. Nxe2 {[%emt 0:00:11] The position is equal.} c6 {[%emt 0:00:09]} 9. Nbc3 {[%emt 0:00:13]} g6 {[%emt 0:00:14]} 10. Bf4 {[%emt 0:03:25]} Bg7 {[%emt 0:02:05]} 11. Qd2 {[%emt 0:01:59] [#]} O-O $146 {[%emt 0:00:07]} ({Predecessor:} 11... Qb6 12. O-O-O Nbd7 13. Bh6 Bxh6 14. Qxh6 Qa6 15. b3 b5 16. d5 bxc4 17. dxc6 Nc5 18. bxc4 Qxc4 {0-1 (41) Gantar,J (2162)-Enchev,I (2395) Skopje 2015}) 12. Bh6 {[%emt 0:04:12]} (12. Rd1 $142) 12... Bxh6 $11 {[%emt 0:00:05]} 13. Qxh6 {[%emt 0:00:06]} Nbd7 {[%emt 0:00:24]} 14. O-O {[%emt 0:05:58]} Re8 {[%emt 0:00:08]} 15. Rfd1 {[%emt 0:03:03][%cal Bf1d1,Bd1d5,Bd5d4][%mdl 32]} Qa5 {[%emt 0:00:12]} 16. d5 {[%emt 0:07:55]} cxd5 {[%emt 0:22:39]} 17. Nxd5 {[%emt 0:02:05]} Nxd5 {[%emt 0:00:07]} 18. Rxd5 {[%emt 0:01:09]} Qc7 {[%emt 0:00:40]} 19. b3 {[%emt 0:04:23]} Nf6 {[%emt 0:00:06]} 20. Rd4 {[%emt 0:04:01]} Rad8 {[%emt 0:01:04]} 21. Rad1 {[%emt 0:05:11]} Ng4 {[%emt 0:05:31]} 22. Qh3 {[%emt 0:10:44]} h5 {[%emt 0:03:01] Strongly threatening ...Rxd4.} 23. Qg3 {[%emt 0:02:32]} Qa5 {[%emt 0:10:31] aiming for ...Rxd4.} 24. h3 {[%emt 0:16:28]} (24. Nc3 $5 {[%cal Rb3b4]} Rxd4 25. Rxd4 $11) 24... Rxd4 {[%emt 0:00:41]} 25. Nxd4 {[%emt 0:00:06]} Nf6 {[%emt 0:00:15]} 26. a4 {[%emt 0:03:36]} Rd8 {[%emt 0:00:45]} 27. Qf3 {[%emt 0:00:56]} Qe5 {[%emt 0:05:15]} 28. Nb5 {[%emt 0:05:54]} Rxd1+ {[%emt 0:02:20]} 29. Qxd1 {[%emt 0:00:01][%mdl 4096] Endgame KQN-KQN} a6 {[%emt 0:00:10]} 30. Nd4 {[%emt 0:01:25]} Ne4 {[%emt 0:00:58]} 31. Nf3 $1 {[%emt 0:02:47]} Qb2 {[%emt 0:03:34]} 32. Qd4 {[%emt 0:01:12]} (32. Qe1 $11 Nc5 33. Qxe7 Qc1+ 34. Kh2 Qf4+ 35. Kh1 Qc1+ 36. Kh2 Qf4+ 37. Kh1 Qc1+ 38. Kh2) 32... Qxd4 $17 {[%emt 0:03:06]} 33. Nxd4 {[%emt 0:00:02] KN-KN} e5 {[%emt 0:14:42]} 34. Nf3 {[%emt 0:04:00]} f6 {[%emt 0:01:45]} 35. a5 {[%emt 0:05:18]} Kf7 {[%emt 0:01:40]} ({Black should try} 35... Nc5 $1 $17 {[%cal Rc5b3]} 36. b4 Nb3) 36. Kf1 {[%emt 0:01:16] [#]} (36. b4 $15) 36... Nc5 $1 {[%emt 0:00:40]} 37. Nd2 {[%emt 0:00:50]} Ke7 {[%emt 0:04:00]} 38. Ke2 {[%emt 0:00:34]} Ne6 {[%emt 0:00:06]} 39. b4 {[%emt 0:03:03][%cal Bb3b4,Bb4b5][%mdl 32] [#]} Nf4+ $1 {[%emt 0:00:06]} 40. Kf3 {[%emt 0:12:12]} f5 {[%emt 0:03:01]} 41. Nb3 {[%emt 0:00:00]} Nd3 {[%emt 0:00:30]} 42. b5 {[%emt 0:00:00]} Ne1+ {[%emt 0:07:21]} (42... Kd6 $17) 43. Ke2 $11 {[%emt 0:00:00]} Nxg2 {[%emt 0:05:37]} 44. Nc5 {[%emt 0:00:00][%csl LRa6,LRb7]} Nf4+ {[%emt 0:00:04]} 45. Kf3 {[%emt 0:00:00]} Ne6 {[%emt 0:01:59]} 46. Nxb7 {[%emt 0:00:00]} axb5 {[%emt 0:00:12]} 47. cxb5 {[%emt 0:00:00]} Nd4+ {[%emt 0:00:05]} 48. Kg3 {[%emt 0:00:00]} Nxb5 {[%emt 0:00:21]} 49. a6 {[%emt 0:00:58]} g5 {[%emt 0:00:22]} 50. h4 {[%emt 0:01:03]} f4+ {[%emt 0:00:24]} 51. Kf3 {[%emt 0:00:14]} gxh4 {[%emt 0:01:11] Threatens to win with ...h3.} 52. Kg2 {[%emt 0:00:20]} Ke6 {[%emt 0:00:31]} 53. Nc5+ {[%emt 0:00:16]} Kd5 {[%emt 0:01:06]} 54. Nd7 {[%emt 0:00:08]} Ke4 {[%emt 0:01:13]} (54... e4 $5 55. Nf6+ Ke5 56. Nxh5 Kf5 $11) 55. Nf6+ {[%emt 0:00:28]} Kf5 {[%emt 0:00:02]} 56. Nxh5 {[%emt 0:00:02][%mdl 8192]} (56. Ne8 $11 Ke6 57. Ng7+ Kf7 58. Nf5) 56... Kg6 {[%emt 0:00:33] Black mates.} 57. Nxf4+ {[%emt 0:00:46]} exf4 {[%emt 0:10:07]} 58. Kh3 Kh5 59. f3 Kg5 {[%emt 0:00:30]} 60. Kh2 Kf6 {[%emt 0:00:15]} 61. Kh3 Ke5 {[%emt 0:00:15] Weighted Error Value: White=0.27 (precise) /Black=0.08 (flawless)} 0-1

[Event "14th BPB Limburg Open 2022"]
[Site "Maastricht"]
[Date "2022.06.04"]
[Round "2.6"]
[White "Ernst, Sipke"]
[Black "Bomans, Arno"]
[Result "1-0"]
[ECO "A57"]
[WhiteElo "2547"]
[BlackElo "2241"]
[Annotator "TA"]
[PlyCount "61"]
[EventDate "2022.06.03"]
[EventType "swiss"]
[EventCountry "NED"]
[SourceTitle "playchess.com"]
[Source "ChessBase"]
[SourceQuality "1"]
[TimeControl "7200+15"]

{[%evp 11,61,36,22,30,18,-11,25,0,18,12,98,102,191,203,329,320,556,556,577,554,1340,1335,1336,1342,1332,1337,1329,1329,1292,1280,1232,959,1238,1150,1608,1556,1562,1164,1155,1159,1234,1194,2292,2269,2195,2161,5987,5457,3501,2747,1800,1770]} 1. d4 {[%emt 0:01:04]} Nf6 {[%emt 0:02:26]} 2. c4 {[%emt 0:00:05]} c5 {[%emt 0:00:05]} 3. d5 {[%emt 0:00:09]} b5 {[%emt 0:00:23]} 4. cxb5 {[%emt 0:00:05]} a6 {[%emt 0:00:11]} 5. e3 {[%emt 0:00:05]} e6 {[%emt 0:00:47]} 6. dxe6 {[%emt 0:00:08]} fxe6 {[%emt 0:00:07]} 7. Nf3 {[%emt 0:00:05] A57: Benko/Volga Gambit.} d5 {[%emt 0:00:57] 7...d5 is better than 7...Be7.} 8. Nbd2 {[%emt 0:00:09]} Bd6 {[%emt 0:04:04][%mdl 1024] Black has compensation.} 9. b3 {[%emt 0:06:30][%cal Bb2b3,Bb3c4][%mdl 32] Against c4. White has an edge.} O-O {[%emt 0:06:21]} 10. Bb2 {[%emt 0:00:35] Prevents e5.} Qa5 {[%emt 0:03:59] [#]} (10... Qe7 $11) 11. a4 $1 $16 {[%emt 0:02:35] White now steadily converts the win.} Ne4 {[%emt 0:04:58]} (11... Qc7 $16 {was called for.}) 12. Bd3 $18 {[%emt 0:10:23]} c4 {[%emt 0:04:48]} (12... Nxd2 {is a better defense.} 13. Nxd2 (13. Qxd2 Qxd2+ 14. Kxd2 Nd7 $16) 13... Nd7) 13. bxc4 {[%emt 0:04:13]} Bb4 $2 {[%emt 0:02:34] [#]} (13... Nxd2 {was necessary.} 14. Nxd2 (14. Qxd2 $2 Bb4 $19) 14... dxc4) 14. O-O $1 {[%emt 0:02:29] White is clearly winning.} Nxd2 {[%emt 0:07:45]} (14... Nf6 15. Nb3) 15. Nxd2 {[%emt 0:00:48][%cal Od1h5] Threatens to win with Qh5!} Bxd2 {[%emt 0:01:43]} 16. Qh5 {[%emt 0:00:05][%csl LRd5,LRh7]} h6 {[%emt 0:02:13] [#]} 17. Bxg7 $1 {[%emt 0:00:04][%mdl 512] Intending Qg6 and mate.} Bc3 {[%emt 0:01:41]} 18. Bxh6 {[%emt 0:05:14] [#] White wants to mate with Qg6+.} Ra7 $146 {[%emt 0:05:20]} ({Predecessor:} 18... Rf6 19. Qe8+ {1-0 (19) Navara,D (2716)-Zwardon,V (2399) Pardubice 2014}) 19. Qg6+ {[%emt 0:03:08]} Rg7 {[%emt 0:00:37]} 20. Bxg7 {[%emt 0:00:07]} Bxg7 {[%emt 0:00:12]} 21. cxd5 {[%emt 0:00:21] aiming for Qh7+.} exd5 {[%emt 0:02:47]} 22. Rac1 {[%emt 0:00:10][%cal Oc1c8] Rxc8! is the strong threat.} Bd7 {[%emt 0:01:38]} 23. Qh7+ {[%emt 0:02:30]} Kf7 {[%emt 0:00:05]} 24. bxa6 {[%emt 0:02:04]} Qb6 {[%emt 0:05:44]} 25. Rb1 {[%emt 0:02:56]} Qd6 {[%emt 0:00:43]} 26. Rb7 {[%emt 0:00:06]} Rh8 {[%emt 0:02:31]} 27. Qxh8 {[%emt 0:00:10]} Bxh8 {[%emt 0:00:16]} 28. a7 {[%emt 0:00:04]} Nc6 {[%emt 0:01:44]} 29. a8=Q {[%emt 0:00:12]} Bf6 {[%emt 0:02:04] [#]} 30. Rxd7+ $1 {[%emt 0:01:21]} Qxd7 {[%emt 0:00:14]} 31. Bb5 {[%emt 0:00:05] Weighted Error Value: White=0.08 (flawless) /Black=0.76} 1-0

[Event "14th BPB Limburg Open 2022"]
[Site "Maastricht"]
[Date "2022.06.04"]
[Round "2.7"]
[White "Zwirs, Nico"]
[Black "Noiroux, Kevin"]
[Result "1-0"]
[ECO "B01"]
[WhiteElo "2468"]
[BlackElo "2215"]
[Annotator "TA"]
[PlyCount "69"]
[EventDate "2022.06.03"]
[EventType "swiss"]
[EventCountry "NED"]
[SourceTitle "playchess.com"]
[Source "ChessBase"]
[SourceQuality "1"]
[TimeControl "7200+15"]

{[%evp 11,69,44,49,27,37,25,24,0,45,17,53,37,51,42,53,0,5,-7,-17,-13,-22,-2,56,20,59,48,72,78,61,58,209,201,200,159,216,217,199,198,665,654,670,680,680,675,654,665,655,660,594,631,695,677,727,710,731,614,818,806,741,706]} 1. e4 {[%emt 0:00:03]} d5 {[%emt 0:02:06]} 2. exd5 {[%emt 0:00:09]} Qxd5 {[%emt 0:00:07]} 3. Nc3 {[%emt 0:00:05]} Qa5 {[%emt 0:00:04]} 4. d4 {[%emt 0:00:16]} Nf6 {[%emt 0:00:07]} 5. Nf3 {[%emt 0:00:07]} Bf5 {[%emt 0:00:05]} 6. Ne5 {[%emt 0:00:24]} c6 {[%emt 0:00:06]} 7. h4 {[%emt 0:00:08] B01: Scandinavian Defence.} Nbd7 {[%emt 0:15:32]} 8. Nc4 {[%emt 0:00:43] [#]} Qd8 $146 {[%emt 0:05:26]} ({Predecessor:} 8... Qc7 9. Ne3 e6 10. g4 Be4 11. Nxe4 Nxe4 12. Qd3 Qf4 13. Nd1 Qxg4 14. Bh3 Qxh4 {1-0 (41) Warmerdam,M (2535)-Karagiannis,T (1760) Aghios Kirykos 2021}) 9. Bg5 {[%emt 0:09:23] White has an edge.} g6 {[%emt 0:33:10]} 10. Bd3 {[%emt 0:16:29]} Bxd3 {[%emt 0:05:46]} 11. Qxd3 {[%emt 0:00:07]} Bg7 {[%emt 0:00:33]} 12. O-O-O {[%emt 0:00:58][%cal Oh4h5] And now h5! would win.} b5 {[%emt 0:17:41]} 13. Nd2 {[%emt 0:05:05]} (13. Ne5 Nxe5 14. dxe5 Qxd3 15. Rxd3 Ng4 $15) (13. Ne3 $14 {was preferrable.}) 13... h6 $11 {[%emt 0:16:14]} 14. Bf4 {[%emt 0:03:09]} b4 {[%emt 0:01:12]} 15. Nce4 {[%emt 0:01:52][%cal Oe4d6]} Nd5 {[%emt 0:01:18]} 16. Bh2 {[%emt 0:04:08][%cal Oh4h5]} f5 {[%emt 0:20:16]} ({Better is} 16... Qa5 $11) 17. Ng3 {[%emt 0:06:56] Black must now prevent h5.} h5 {[%emt 0:00:02]} 18. Ne2 {[%emt 0:04:27]} O-O {[%emt 0:01:27]} 19. Nf4 {[%emt 0:01:12]} Nxf4 {[%emt 0:00:30]} 20. Bxf4 {[%emt 0:00:01]} e5 $2 {[%emt 0:01:11] Black cannot hold the game after this.} (20... Nb6 $14) 21. Qc4+ {[%emt 0:00:44]} Kh7 {[%emt 0:00:08]} 22. dxe5 {[%emt 0:00:13] [#] Nf3 is the strong threat.} Bxe5 {[%emt 0:02:17]} (22... Nb6 $16 23. Qb3 (23. Qxb4 Nd5 $16) (23. Qxc6 Qd4 $16) 23... Nd5) 23. Nf3 $18 {[%emt 0:08:29]} (23. Qxb4 c5 24. Nf3 cxb4 $17) 23... Nb6 {[%emt 0:00:01]} 24. Qxb4 {[%emt 0:01:32]} (24. Rxd8 $6 Nxc4 25. Rd7+ (25. Nxe5 Rfxd8 26. Nxc6 Rd7 $11) 25... Bg7 $16) 24... Nd5 $2 {[%emt 0:00:23]} (24... c5 25. Rxd8 cxb4 26. Ng5+ Kh6 27. Nf7+ (27. Bxe5 Raxd8 28. Ne6 Rg8 $18) 27... Kh7 28. Ng5+ (28. Bxe5 Rfxd8 29. Nxd8 Rxd8 $18) 28... Kh6 29. Nf7+ (29. Bxe5 Raxd8 30. Ne6 Rg8 $16) 29... Kh7 30. Ng5+ (30. Bxe5 Rfxd8 31. Nxd8 Rxd8 $18)) 25. Qb7+ {[%emt 0:00:44] White is clearly winning.} Bg7 {[%emt 0:00:30]} 26. Be5 {[%emt 0:00:09][%csl Ge5][%cal Rb7g7] [#]} Qe7 {[%emt 0:00:15]} 27. Qxe7 {[%emt 0:00:20]} Nxe7 {[%emt 0:00:02]} 28. Ng5+ {[%emt 0:00:08]} Kg8 {[%emt 0:00:13]} 29. Bxg7 {[%emt 0:00:20]} Kxg7 {[%emt 0:00:04]} 30. Ne6+ {[%emt 0:00:00]} Kf7 {[%emt 0:00:04]} 31. Nxf8 {[%emt 0:00:00]} Kxf8 {[%emt 0:00:03]} 32. Rhe1 {[%emt 0:00:04]} a5 {[%emt 0:00:37]} 33. Rd6 {[%emt 0:00:14]} Re8 {[%emt 0:00:20]} 34. Rf6+ {[%emt 0:00:14]} Kg7 {[%emt 0:00:07]} 35. Rxc6 {[%emt 0:00:06] Weighted Error Value: White=0.13 (very precise) /Black=0.51} 1-0